Workbook

Sheet Votanti
B2: ELEZIONI POLITICHE del 4 marzo 2018 - CAMERA dei DEPUTATI
G3: VOTANTI ORE | K3: VOTANTI ORE
C4: TOTALE ELETTORI | P4: VOTANTI
C5: CAMERA | P5: Chiusura Seggi
B6: SEZ | C6: M | D6: F | E6: TOT | G6: SEZ | H6: TOTALE | K6: SEZ | L6: TOTALE | O6: SEZ | P6: M | Q6: F | R6: TOT | S6: SEZ
B7: 1 | C7: 417 | D7: 446 | E7: =SUM(C7:D7) -> 863 | G7: 1 | H7: 152 | I7: =IF(E7>0,SUM(H7/E7%/100),"") -> 0.1761297798 | K7: 1 | L7: 504 | M7: =IF(I7>0,SUM(L7/E7%/100),"") -> 0.58400927 | O7: 1 | P7: 319 | Q7: 308 | R7: =SUM(P7:Q7) -> 627 | S7: 1 | T7: =IF(M7>0,SUM(R7/E7%/100),"") -> 0.7265353418
B8: 2 | C8: 354 | D8: 419 | E8: =SUM(C8:D8) -> 773 | G8: 2 | H8: 129 | I8: 0.1668822768 | K8: 2 | L8: 427 | M8: =IF(I8>0,SUM(L8/E8%/100),"") -> 0.552393273 | O8: 2 | P8: 266 | Q8: 302 | R8: 568 | S8: 2 | T8: =IF(M8>0,SUM(R8/E8%/100),"") -> 0.7347994825
B9: 3 | C9: 367 | D9: 430 | E9: 797 | G9: 3 | H9: 96 | I9: 0.1204516939 | K9: 3 | L9: 404 | M9: 0.5069008783 | O9: 3 | P9: 264 | Q9: 268 | R9: 532 | S9: 3 | T9: 0.6675031368
B10: 4 | C10: 478 | D10: 525 | E10: 1003 | G10: 4 | H10: 169 | I10: 0.1684945165 | K10: 4 | L10: 590 | M10: 0.5882352941 | O10: 4 | P10: 361 | Q10: 379 | R10: 740 | S10: 4 | T10: 0.7377866401
B11: 5 | C11: 406 | D11: 422 | E11: 828 | G11: 5 | H11: 132 | I11: 0.1594202899 | K11: 5 | L11: 431 | M11: 0.520531401 | O11: 5 | P11: 306 | Q11: 287 | R11: 593 | S11: 5 | T11: 0.7161835749
B12: 6 | C12: 391 | D12: 447 | E12: 838 | G12: 6 | H12: 128 | I12: 0.1527446301 | K12: 6 | L12: 467 | M12: 0.5572792363 | O12: 6 | P12: 285 | Q12: 296 | R12: 581 | S12: 6 | T12: 0.6933174224
C13: =SUM(C7:C12) -> 2413 | D13: =SUM(D7:D12) -> 2689 | E13: =SUM(E7:E12) -> 5102 | H13: =SUM(H7:H12) -> 806 | L13: =SUM(L7:L12) -> 2823 | P13: =SUM(P7:P12) -> 1801 | Q13: =SUM(Q7:Q12) -> 1840 | R13: 3641
C14: =IF(C13>0,SUM(C13/E13%/100),"0%") -> 0.4729517836 | D14: =IF(D13>0,SUM(D13/E13%/100),"0%") -> 0.5270482164 | E14: =SUM(C14:D14) -> 1 | H14: =IF(H13>0,SUM(H13/E13%/100),"0%") -> 0.1579772638 | L14: =IF(L13>0,SUM(L13/E13%/100),"0%") -> 0.5533124265 | P14: =IF(P13>0,SUM(P13/C13%/100),"0%") -> 0.7463738085 | Q14: =IF(Q13>0,SUM(Q13/D13%/100),"0%") -> 0.6842692451 | R14: =IF(R13>0,SUM(R13/E13%/100),"0%") -> 0.7136417091

Sheet Scrutinio
O4: =SUM(B16) -> 6 | U4: =IF(O4=0,"sezioni su 6",IF(O4=1,"sezione su 6","sezioni su 6")) -> sezioni su 6
O6: 1 | P6: 2 | Q6: 3 | R6: 4 | S6: 5 | T6: 6 | U6: 7 | V6: 8 | W6: 9 | X6: 10 | Y6: 11 | Z6: 12
O7: DURANTE | P7: SIMMINI | Q7: DE LUCA | R7: ALEMANNO | S7: DE CARLO | T7: BLASI | U7: CAMASSA | V7: RISI | W7: CITTA | X7: BALDASSARRE | Y7: GIURI | Z7: CAROPPO
C9: ELETTORI | F9: VOTANTI | K9: VOTI NON VALIDI | P9: Rocco Antonio | Q9: Luigi | R9: Giuseppe | T9: Rocco Antonio | U9: Luigi | V9: Giuseppe | X9: Rocco Antonio | Y9: Luigi | Z9: Giuseppe
B10: SEZ | C10: M | D10: F | E10: TOT | F10: M | G10: F | H10: TOT | I10: % VOTANTI | J10: SEZ | K10: BIANCHE | L10: NULLE | M10: CONTESTATE O NON ATTRIBUITE | N10: TOT. | P10: CONTE | Q10: ARCUTI | R10: MENALLO | T10: CONTE | U10: ARCUTI | V10: MENALLO | X10: CONTE | Y10: ARCUTI | Z10: MENALLO
B11: 1 | C11: =Votanti!C7 -> 417 | D11: =Votanti!D7 -> 446 | E11: =Votanti!E7 -> 863 | F11: =Votanti!P7 -> 319 | G11: =Votanti!Q7 -> 308 | H11: =SUM(F11:G11) -> 627 | I11: =Votanti!T7 -> 0.7265353418 | J11: 1 | K11: ='SEZ. 1'!$E$11 -> 14 | L11: ='SEZ. 1'!$E$12 -> 12 | M11: ='SEZ. 1'!$E$13 -> 0 | N11: =SUM(K11:M11) -> 26 | O11: ='1'!$D$5 -> 1 | P11: ='1'!$D$7 -> 4 | Q11: ='1'!$D$9 -> 0 | R11: ='1'!$D$11 -> 196 | S11: ='1'!$D$13 -> 4 | T11: ='1'!$D$14 -> 67 | U11: ='1'!$D$20 -> 0 | V11: ='1'!$D$22 -> 9 | W11: ='1'!$D$24 -> 0 | X11: ='1'!$D$26 -> 5 | Y11: ='1'!$D$28 -> 3 | Z11: ='1'!$D$29 -> 312 | AA11: =SUM(O11:Z11,N11) -> 627 | AB11: =IF(AC11="OK",1,"") ->  | AC11: =IF(H11>"0",IF(H11=AA11,"OK",H11-AA11),"") -> 
B12: 2 | C12: =Votanti!C8 -> 354 | D12: =Votanti!D8 -> 419 | E12: =Votanti!E8 -> 773 | F12: =Votanti!P8 -> 266 | G12: =Votanti!Q8 -> 302 | H12: =SUM(F12:G12) -> 568 | I12: =Votanti!T8 -> 0.7347994825 | J12: 2 | K12: ='SEZ. 2'!$E$11 -> 6 | L12: ='SEZ. 2'!$E$12 -> 7 | M12: ='SEZ. 2'!$E$13 -> 0 | N12: =SUM(K12:M12) -> 13 | O12: ='2'!$D$5 -> 1 | P12: ='2'!$D$7 -> 3 | Q12: ='2'!$D$9 -> 1 | R12: ='2'!$D$11 -> 157 | S12: ='2'!$D$13 -> 5 | T12: ='2'!$D$14 -> 120 | U12: ='2'!$D$20 -> 3 | V12: ='2'!$D$22 -> 19 | W12: ='2'!$D$24 -> 1 | X12: ='2'!$D$26 -> 7 | Y12: ='2'!$D$28 -> 0 | Z12: ='2'!$D$29 -> 238 | AA12: =SUM(O12:Z12,N12) -> 568 | AB12: =IF(AC12="OK",1,"") ->  | AC12: =IF(H12>"0",IF(H12=AA12,"OK",H12-AA12),"") -> 
B13: 3 | C13: =Votanti!C9 -> 367 | D13: =Votanti!D9 -> 430 | E13: =Votanti!E9 -> 797 | F13: =Votanti!P9 -> 264 | G13: =Votanti!Q9 -> 268 | H13: 532 | I13: =Votanti!T9 -> 0.6675031368 | J13: 3 | K13: ='SEZ. 3'!$E$11 -> 9 | L13: ='SEZ. 3'!$E$12 -> 6 | M13: ='SEZ. 3'!$E$13 -> 0 | N13: 15 | O13: ='3'!$D$5 -> 1 | P13: ='3'!$D$7 -> 2 | Q13: ='3'!$D$9 -> 1 | R13: ='3'!$D$11 -> 168 | S13: ='3'!$D$13 -> 2 | T13: ='3'!$D$14 -> 69 | U13: ='3'!$D$20 -> 2 | V13: ='3'!$D$22 -> 17 | W13: ='3'!$D$24 -> 0 | X13: ='3'!$D$26 -> 2 | Y13: ='3'!$D$28 -> 2 | Z13: ='3'!$D$29 -> 251 | AA13: 532
B14: 4 | C14: =Votanti!C10 -> 478 | D14: =Votanti!D10 -> 525 | E14: =Votanti!E10 -> 1003 | F14: =Votanti!P10 -> 361 | G14: =Votanti!Q10 -> 379 | H14: 740 | I14: =Votanti!T10 -> 0.7377866401 | J14: 4 | K14: ='SEZ. 4'!$E$11 -> 15 | L14: ='SEZ. 4'!$E$12 -> 10 | M14: ='SEZ. 4'!$E$13 -> 0 | N14: 25 | O14: ='4'!$D$5 -> 1 | P14: ='4'!$D$7 -> 3 | Q14: ='4'!$D$9 -> 3 | R14: ='4'!$D$11 -> 257 | S14: ='4'!$D$13 -> 9 | T14: ='4'!$D$14 -> 103 | U14: ='4'!$D$20 -> 1 | V14: ='4'!$D$22 -> 16 | W14: ='4'!$D$24 -> 0 | X14: ='4'!$D$26 -> 1 | Y14: ='4'!$D$28 -> 3 | Z14: ='4'!$D$29 -> 318 | AA14: 740
B15: 5 | C15: =Votanti!C11 -> 406 | D15: =Votanti!D11 -> 422 | E15: =Votanti!E11 -> 828 | F15: =Votanti!P11 -> 306 | G15: =Votanti!Q11 -> 287 | H15: 593 | I15: =Votanti!T11 -> 0.7161835749 | J15: 5 | K15: ='SEZ. 5'!$E$11 -> 7 | L15: ='SEZ. 5'!$E$12 -> 13 | M15: ='SEZ. 5'!$E$13 -> 0 | N15: 20 | O15: ='5'!$D$5 -> 0 | P15: ='5'!$D$7 -> 4 | Q15: ='5'!$D$9 -> 0 | R15: ='5'!$D$11 -> 182 | S15: ='5'!$D$13 -> 1 | T15: ='5'!$D$14 -> 93 | U15: ='5'!$D$20 -> 3 | V15: ='5'!$D$22 -> 14 | W15: ='5'!$D$24 -> 0 | X15: ='5'!$D$26 -> 3 | Y15: ='5'!$D$28 -> 2 | Z15: ='5'!$D$29 -> 271 | AA15: 593
B16: 6 | C16: =Votanti!C12 -> 391 | D16: =Votanti!D12 -> 447 | E16: =Votanti!E12 -> 838 | F16: =Votanti!P12 -> 285 | G16: =Votanti!Q12 -> 296 | H16: 581 | I16: =Votanti!T12 -> 0.6933174224 | J16: 6 | K16: ='SEZ. 6'!$E$11 -> 12 | L16: ='SEZ. 6'!$E$12 -> 28 | M16: ='SEZ. 6'!$E$13 -> 0 | N16: 40 | O16: ='6'!$D$5 -> 2 | P16: ='6'!$D$7 -> 5 | Q16: ='6'!$D$9 -> 0 | R16: ='6'!$D$11 -> 207 | S16: ='6'!$D$13 -> 9 | T16: ='6'!$D$14 -> 76 | U16: ='6'!$D$20 -> 0 | V16: ='6'!$D$22 -> 18 | W16: ='6'!$D$24 -> 0 | X16: ='6'!$D$26 -> 3 | Y16: ='6'!$D$28 -> 3 | Z16: ='6'!$D$29 -> 218 | AA16: 581
C17: =SUM(C11:C16) -> 2413 | D17: =SUM(D11:D16) -> 2689 | E17: =SUM(E11:E16) -> 5102 | F17: =SUM(F11:F16) -> 1801 | G17: =SUM(G11:G16) -> 1840 | H17: 3641 | I17: =Votanti!R14 -> 0.7136417091 | K17: =SUM(K11:K16) -> 63 | L17: =SUM(L11:L16) -> 76 | M17: =SUM(M11:M16) -> 0 | N17: =SUM(K17:M17) -> 139 | O17: =SUM(O11:O16) -> 6 | P17: 21 | Q17: 5 | R17: 1167 | S17: 30 | T17: 528 | U17: 9 | V17: 93 | W17: 1 | X17: 21 | Y17: 13 | Z17: 1608 | AA17: 3641
C18: =Votanti!C14 -> 0.4729517836 | D18: =Votanti!D14 -> 0.5270482164 | E18: =Votanti!E14 -> 1 | F18: =Votanti!P14 -> 0.7463738085 | G18: =Votanti!Q14 -> 0.6842692451 | H18: =Votanti!R14 -> 0.7136417091 | K18: =IFERROR(SUM(K17/$H$17%/100),0%) -> 0.01730293875 | L18: 0.02087338643 | M18: 0 | N18: =IFERROR(SUM(N17/$H$17%/100),0%) -> 0.03817632519 | O18: =IFERROR(SUM(O17/$AA$17%/100),0%) -> 0.001647898929 | P18: =IFERROR(SUM(P17/$AA$17%/100),0%) -> 0.005767646251 | Q18: 0.001373249107 | R18: 0.3205163417 | S18: 0.008239494644 | T18: 0.1450151057 | U18: 0.002471848393 | V18: 0.0255424334 | W18: 0.0002746498215 | X18: 0.005767646251 | Y18: 0.003570447679 | Z18: 0.4416369129
C19: ELETTORI | F19: VOTANTI
N20: =IF(Q20>0,RANK(Q20,$Q$20:$Q$31),"") -> 1 | O20: =INDEX(Candidati!$C$4:$C$15,MATCH(LARGE(Candidati!$D$4:$D$15-ROW(Candidati!$D$4:$D$15)/100,ROW(N20)-ROW($K$19)),Candidati!$D$4:$D$15-ROW(Candidati!$D$4:$D$15)/100,0)) -> CAROPPO | Q20: =VLOOKUP(O20,Candidati!$C$3:$D$15,2,0) -> 1608
N21: 2 | O21: =INDEX(Candidati!$C$4:$C$15,MATCH(LARGE(Candidati!$D$4:$D$15-ROW(Candidati!$D$4:$D$15)/100,ROW(N21)-ROW($K$19)),Candidati!$D$4:$D$15-ROW(Candidati!$D$4:$D$15)/100,0)) -> ALEMANNO | Q21: =VLOOKUP(O21,Candidati!$C$3:$D$15,2,0) -> 1167
N22: 3 | O22: =INDEX(Candidati!$C$4:$C$15,MATCH(LARGE(Candidati!$D$4:$D$15-ROW(Candidati!$D$4:$D$15)/100,ROW(N22)-ROW($K$19)),Candidati!$D$4:$D$15-ROW(Candidati!$D$4:$D$15)/100,0)) -> BLASI | Q22: =VLOOKUP(O22,Candidati!$C$3:$D$15,2,0) -> 528
N23: 4 | O23: =INDEX(Candidati!$C$4:$C$15,MATCH(LARGE(Candidati!$D$4:$D$15-ROW(Candidati!$D$4:$D$15)/100,ROW(N23)-ROW($K$19)),Candidati!$D$4:$D$15-ROW(Candidati!$D$4:$D$15)/100,0)) -> RISI | Q23: =VLOOKUP(O23,Candidati!$C$3:$D$15,2,0) -> 93
N24: 5 | O24: =INDEX(Candidati!$C$4:$C$15,MATCH(LARGE(Candidati!$D$4:$D$15-ROW(Candidati!$D$4:$D$15)/100,ROW(N24)-ROW($K$19)),Candidati!$D$4:$D$15-ROW(Candidati!$D$4:$D$15)/100,0)) -> DE CARLO | Q24: =VLOOKUP(O24,Candidati!$C$3:$D$15,2,0) -> 30
N25: 6 | O25: =INDEX(Candidati!$C$4:$C$15,MATCH(LARGE(Candidati!$D$4:$D$15-ROW(Candidati!$D$4:$D$15)/100,ROW(N25)-ROW($K$19)),Candidati!$D$4:$D$15-ROW(Candidati!$D$4:$D$15)/100,0)) -> SIMMINI | Q25: =VLOOKUP(O25,Candidati!$C$3:$D$15,2,0) -> 21
N26: 6 | O26: =INDEX(Candidati!$C$4:$C$15,MATCH(LARGE(Candidati!$D$4:$D$15-ROW(Candidati!$D$4:$D$15)/100,ROW(N26)-ROW($K$19)),Candidati!$D$4:$D$15-ROW(Candidati!$D$4:$D$15)/100,0)) -> BALDASSARRE | Q26: =VLOOKUP(O26,Candidati!$C$3:$D$15,2,0) -> 21
N27: 8 | O27: =INDEX(Candidati!$C$4:$C$15,MATCH(LARGE(Candidati!$D$4:$D$15-ROW(Candidati!$D$4:$D$15)/100,ROW(N27)-ROW($K$19)),Candidati!$D$4:$D$15-ROW(Candidati!$D$4:$D$15)/100,0)) -> GIURI | Q27: =VLOOKUP(O27,Candidati!$C$3:$D$15,2,0) -> 13
N28: 9 | O28: =INDEX(Candidati!$C$4:$C$15,MATCH(LARGE(Candidati!$D$4:$D$15-ROW(Candidati!$D$4:$D$15)/100,ROW(N28)-ROW($K$19)),Candidati!$D$4:$D$15-ROW(Candidati!$D$4:$D$15)/100,0)) -> CAMASSA | Q28: =VLOOKUP(O28,Candidati!$C$3:$D$15,2,0) -> 9
N29: 10 | O29: =INDEX(Candidati!$C$4:$C$15,MATCH(LARGE(Candidati!$D$4:$D$15-ROW(Candidati!$D$4:$D$15)/100,ROW(N29)-ROW($K$19)),Candidati!$D$4:$D$15-ROW(Candidati!$D$4:$D$15)/100,0)) -> DURANTE | Q29: =VLOOKUP(O29,Candidati!$C$3:$D$15,2,0) -> 6
N30: 11 | O30: =INDEX(Candidati!$C$4:$C$15,MATCH(LARGE(Candidati!$D$4:$D$15-ROW(Candidati!$D$4:$D$15)/100,ROW(N30)-ROW($K$19)),Candidati!$D$4:$D$15-ROW(Candidati!$D$4:$D$15)/100,0)) -> DE LUCA | Q30: =VLOOKUP(O30,Candidati!$C$3:$D$15,2,0) -> 5
N31: 12 | O31: =INDEX(Candidati!$C$4:$C$15,MATCH(LARGE(Candidati!$D$4:$D$15-ROW(Candidati!$D$4:$D$15)/100,ROW(N31)-ROW($K$19)),Candidati!$D$4:$D$15-ROW(Candidati!$D$4:$D$15)/100,0)) -> CITTA | Q31: =VLOOKUP(O31,Candidati!$C$3:$D$15,2,0) -> 1

Sheet SEZ. 1
C2: CAMERA
C5: Maschi | E5: =Votanti!P7 -> 319
C6: Femmine | E6: =Votanti!Q7 -> 308
C7: TOTALE VOTANTI | E7: =SUM(E5:E6) -> 627 | F7: =IF(E9="","",IF(E7=(E9+E14),"OK!","ERRORE")) -> 
C9: a | D9: TOTALE voti validi
C11: SCHEDE BIANCHE | E11: 14
C12: SCHEDE NULLE | E12: 12
C13: SCHEDE contestate e provvisoriamente non attribuite
C14: b | D14: TOTALE Schede NON VALIDE | E14: =SUM(E11:E13) -> 26
D16: =IF(E16<"","TOTALE (a) + (b)","") ->  | E16: =IF(E9="","",IF(E9+E14=E7,"",E9+E14)) -> 
F18: =IF(E9="","",IF(E9+E14=E7,"",E9+E14-E7)) -> 

Sheet SEZ. 2
C2: CAMERA
C5: Maschi | E5: =Votanti!P8 -> 266
C6: Femmine | E6: =Votanti!Q8 -> 302
C7: TOTALE VOTANTI | E7: =SUM(E5:E6) -> 568 | F7: =IF(E12="","",IF(E7=(E9+E14),"OK!","ERRORE")) -> ERRORE
C9: a | D9: TOTALE voti validi
C11: SCHEDE BIANCHE | E11: 6
C12: SCHEDE NULLE | E12: 7
C13: SCHEDE contestate e provvisoriamente non attribuite
C14: b | D14: TOTALE Schede NON VALIDE | E14: =SUM(E11:E13) -> 13
D16: =IF(E16<"","TOTALE (a) + (b)","") ->  | E16: =IF(E9="","",IF(E9+E14=E7,"",E9+E14)) -> 
F18: =IF(E9="","",IF(E9+E14=E7,"",E9+E14-E7)) -> 

Sheet SEZ. 3
C2: CAMERA
C5: Maschi | E5: =Votanti!P9 -> 264
C6: Femmine | E6: =Votanti!Q9 -> 268
C7: TOTALE VOTANTI | E7: =SUM(E5:E6) -> 532 | F7: =IF(E12="","",IF(E7=(E9+E14),"OK!","ERRORE")) -> ERRORE
C9: a | D9: TOTALE voti validi
C11: SCHEDE BIANCHE | E11: 9
C12: SCHEDE NULLE | E12: 6
C13: SCHEDE contestate e provvisoriamente non attribuite
C14: b | D14: TOTALE Schede NON VALIDE | E14: =SUM(E11:E13) -> 15
D16: =IF(E16<"","TOTALE (a) + (b)","") ->  | E16: =IF(E9="","",IF(E9+E14=E7,"",E9+E14)) -> 
F18: =IF(E9="","",IF(E9+E14=E7,"",E9+E14-E7)) -> 

Sheet SEZ. 4
C2: CAMERA
C5: Maschi | E5: =Votanti!P10 -> 361
C6: Femmine | E6: =Votanti!Q10 -> 379
C7: TOTALE VOTANTI | E7: =SUM(E5:E6) -> 740 | F7: =IF(E9="","",IF(E7=(E9+E14),"OK!","ERRORE")) -> 
C9: a | D9: TOTALE voti validi
C11: SCHEDE BIANCHE | E11: 15
C12: SCHEDE NULLE | E12: 10
C13: SCHEDE contestate e provvisoriamente non attribuite
C14: b | D14: TOTALE Schede NON VALIDE | E14: =SUM(E11:E13) -> 25
D16: =IF(E16<"","TOTALE (a) + (b)","") ->  | E16: =IF(E9="","",IF(E9+E14=E7,"",E9+E14)) ->  | F16: =IF(E9="","",IF(E9+E14=E7,"",E9+E14-E7)) -> 

Sheet SEZ. 5
C2: CAMERA
C5: Maschi | E5: =Votanti!P11 -> 306
C6: Femmine | E6: =Votanti!Q11 -> 287
C7: TOTALE VOTANTI | E7: =SUM(E5:E6) -> 593 | F7: =IF(E9="","",IF(E7=(E9+E14),"OK!","ERRORE")) -> 
C9: a | D9: TOTALE voti validi
C11: SCHEDE BIANCHE | E11: 7
C12: SCHEDE NULLE | E12: 13
C13: SCHEDE contestate e provvisoriamente non attribuite
C14: b | D14: TOTALE Schede NON VALIDE | E14: =SUM(E11:E13) -> 20
D16: =IF(E16<"","TOTALE (a) + (b)","") ->  | E16: =IF(E9="","",IF(E9+E14=E7,"",E9+E14)) ->  | F16: =IF(E9="","",IF(E9+E14=E7,"",E9+E14-E7)) -> 

Sheet SEZ. 6
C2: CAMERA
C5: Maschi | E5: =Votanti!P12 -> 285
C6: Femmine | E6: =Votanti!Q12 -> 296
C7: TOTALE VOTANTI | E7: =SUM(E5:E6) -> 581 | F7: =IF(E9="","",IF(E7=(E9+E14),"OK!","ERRORE")) -> 
C9: a | D9: TOTALE voti validi
C11: SCHEDE BIANCHE | E11: 12
C12: SCHEDE NULLE | E12: 28
C13: SCHEDE contestate e provvisoriamente non attribuite
C14: b | D14: TOTALE Schede NON VALIDE | E14: =SUM(E11:E13) -> 40
D16: =IF(E16<"","TOTALE (a) + (b)","") ->  | E16: =IF(E9="","",IF(E9+E14=E7,"",E9+E14)) ->  | F16: =IF(E9="","",IF(E9+E14=E7,"",E9+E14-E7)) -> 

Sheet Totali
C2: TOTALI CAMERA
C5: Maschi | F5: =SUM('SEZ. 1'!E5,'SEZ. 2'!E5,'SEZ. 3'!E5,'SEZ. 4'!E5,'SEZ. 5'!E5,'SEZ. 6'!E5) -> 1801
C6: Femmine | F6: =SUM('SEZ. 1'!E6,'SEZ. 2'!E6,'SEZ. 3'!E6,'SEZ. 4'!E6,'SEZ. 5'!E6) -> 1544
C7: TOTALE VOTANTI | F7: =SUM(F5:F6) -> 3345
C9: Totale VOTI VALIDI | F9: =SUM('SEZ. 1'!E9,'SEZ. 2'!E9,'SEZ. 3'!E9,'SEZ. 4'!E9,'SEZ. 5'!E9,'SEZ. 6'!E9) -> 0
C11: SCHEDE BIANCHE | F11: =SUM('SEZ. 1'!E11,'SEZ. 2'!E11,'SEZ. 3'!E11,'SEZ. 4'!E11,'SEZ. 5'!E11,'SEZ. 6'!E11) -> 63
C12: SCHEDE NULLE | F12: =SUM('SEZ. 1'!E12,'SEZ. 2'!E12,'SEZ. 3'!E12,'SEZ. 4'!E12,'SEZ. 5'!E12,'SEZ. 6'!E12) -> 76
C13: SCHEDE contestate e provvisoriamente non attribuite | F13: =SUM('SEZ. 1'!E13,'SEZ. 2'!E13,'SEZ. 3'!E13,'SEZ. 4'!E13,'SEZ. 5'!E13,'SEZ. 6'!E13) -> 0
C14: Totale Schede NON VALIDE | F14: =SUM(F11:F13) -> 139

Sheet 1
B2: SCRUTINIO CAMERA - SEZIONE 1
B4: NUMERO CANDIDATO UNINOMINALE | C4: COGNOME E NOME | D4: TOTALE VOTI VALIDI CANDIDATO UNINOMINALE | E4: DI CUI VOTI ESPRESSI AL SOLO CANDIDATO UNINOMINALE | F4: N. LISTE | G4: LISTA COLLEGATA | H4: VOTI ESPRESSI PER LE LISTE
B5: 1 | C5: DURANTE Luca | D5: =SUM(E5,H5) -> 1 | E5: 0 | F5: 1 | G5: 10 VOLTE MEGLIO | H5: 1
B7: 2 | C7: SIMMINI Maria detta Mariagrazia | D7: =SUM(E7,H7) -> 4 | E7: 0 | F7: 1 | G7: POTERE AL POPOLO | H7: 4
B9: 3 | C9: DE LUCA Elena | D9: 0 | E9: 0 | F9: 1 | G9: PARTITO VALORE UMANO | H9: 0
B11: 4 | C11: ALEMANNO Maria Soave | D11: 196 | E11: 10 | F11: 1 | G11: MOVIMENTO 5 STELLE | H11: 186
B13: 5 | C13: DE CARLO Maria Luisa | D13: 4 | E13: 1 | F13: 1 | G13: IL POPOLO DELLA FAMIGLIA | H13: 3
C14: BLASI Sergio | D14: =SUM(D15:D18) -> 67 | E14: =SUM(E15:E18) -> 0
B15: 6 | C15: BLASI Sergio | D15: 1 | E15: 0 | F15: 1 | G15: CIVICA POPOLARE LORENZIN | H15: 1
D16: 3 | F16: 2 | G16: +EUROPA | H16: 3
D17: 63 | F17: 3 | G17: PARTITO DEMOCRATICO | H17: 63
D18: 0 | F18: 4 | G18: ITALIA EUROPA INSIEME | H18: 0
B20: 7 | C20: CAMASSA Barbara | D20: 0 | E20: 0 | F20: 1 | G20: PARTITO COMUNISTA | H20: 0
B22: 8 | C22: RISI Marcello | D22: 9 | E22: 1 | F22: 1 | G22: LIBERI E UGUALI con Pietro GRASSO | H22: 8
B24: 9 | C24: CITTA Sonia | D24: 0 | E24: 0 | F24: 1 | G24: PARTITO REPUBBLICANO ITALIANO - ALA | H24: 0
B26: 10 | C26: BALDASSARRE Angelo | D26: 5 | E26: 0 | F26: 1 | G26: FORZA NUOVA ITALIA AGLI ITALIANI | H26: 5
B28: 11 | C28: GIURI Pierpaolo | D28: 3 | E28: 1 | F28: 1 | G28: CASAPOUND ITALIA | H28: 2
C29: CAROPPO Andrea | D29: =SUM(D30:D33) -> 312 | E29: =SUM(E30:E33) -> 2
B30: 12 | C30: CAROPPO Andrea | D30: 164 | E30: 2 | F30: 1 | G30: FORZA ITALIA | H30: 162
D31: 50 | F31: 2 | G31: FRATELLI D'ITALIA | H31: 50
D32: 54 | F32: 3 | G32: LEGA SALVINI | H32: 54
D33: 44 | F33: 4 | G33: NOI CON L'ITALIA | H33: 44
B34: TOTALE VOTI VALIDI (A1=A2+A3) | D34: =SUM(D5,D7,D9,D11,D13,D15,D16,D17,D18,D20,D22,D24,D26,D28,D30,D31,D32,D33) -> 601 | E34: =SUM(E5,E7,E9,E11,E13,E15,E16,E17,E18,E20,E22,E24,E26,E28,E30,E31,E32,E33) -> 15 | H34: =SUM(H5:H33) -> 586
D35: A1 | E35: A2 | H35: A3
G37: SCHEDE BIANCHE | H37: 14
G38: SCHEDE NULLE | H38: 12
G39: SCHEDE CONTESTATE | H39: ='SEZ. 1'!E13 -> 0
G40: VOTANTI IN TOTALE | H40: =SUM(D34,H37:H39) -> 627 | I40: =IF(H40='SEZ. 1'!E7,"OK","NO") -> OK
H42: =IF(I40="NO",H40-'SEZ. 1'!E7,"") -> 

Sheet 2
B2: SCRUTINIO CAMERA - SEZIONE 2
B4: NUMERO CANDIDATO UNINOMINALE | C4: COGNOME E NOME | D4: TOTALE VOTI VALIDI CANDIDATO UNINOMINALE | E4: DI CUI VOTI ESPRESSI AL SOLO CANDIDATO UNINOMINALE | F4: N. LISTE | G4: LISTA COLLEGATA | H4: VOTI ESPRESSI PER LE LISTE
B5: 1 | C5: DURANTE Luca | D5: =SUM(E5,H5) -> 1 | F5: 1 | G5: 10 VOLTE MEGLIO | H5: 1
B7: 2 | C7: SIMMINI Maria detta Mariagrazia | D7: =SUM(E7,H7) -> 3 | F7: 1 | G7: POTERE AL POPOLO | H7: 3
B9: 3 | C9: DE LUCA Elena | D9: 1 | F9: 1 | G9: PARTITO VALORE UMANO | H9: 1
B11: 4 | C11: ALEMANNO Maria Soave | D11: 157 | E11: 6 | F11: 1 | G11: MOVIMENTO 5 STELLE | H11: 151
B13: 5 | C13: DE CARLO Maria Luisa | D13: 5 | F13: 1 | G13: IL POPOLO DELLA FAMIGLIA | H13: 5
C14: BLASI Sergio | D14: =SUM(D15:D18) -> 120 | E14: =SUM(E15:E18) -> 29
B15: 6 | C15: BLASI Sergio | D15: 4 | F15: 1 | G15: CIVICA POPOLARE LORENZIN | H15: 4
D16: 2 | F16: 2 | G16: +EUROPA | H16: 2
D17: 111 | E17: 29 | F17: 3 | G17: PARTITO DEMOCRATICO | H17: 82
D18: 3 | F18: 4 | G18: ITALIA EUROPA INSIEME | H18: 3
B20: 7 | C20: CAMASSA Barbara | D20: 3 | E20: 1 | F20: 1 | G20: PARTITO COMUNISTA | H20: 2
B22: 8 | C22: RISI Marcello | D22: 19 | E22: 2 | F22: 1 | G22: LIBERI E UGUALI con Pietro GRASSO | H22: 17
B24: 9 | C24: CITTA Sonia | D24: 1 | F24: 1 | G24: PARTITO REPUBBLICANO ITALIANO - ALA | H24: 1
B26: 10 | C26: BALDASSARRE Angelo | D26: 7 | F26: 1 | G26: FORZA NUOVA ITALIA AGLI ITALIANI | H26: 7
B28: 11 | C28: GIURI Pierpaolo | D28: 0 | F28: 1 | G28: CASAPOUND ITALIA | H28: 0
C29: CAROPPO Andrea | D29: =SUM(D30:D33) -> 238 | E29: =SUM(E30:E33) -> 4
B30: 12 | C30: CAROPPO Andrea | D30: 131 | E30: 4 | F30: 1 | G30: FORZA ITALIA | H30: 127
D31: 48 | F31: 2 | G31: FRATELLI D'ITALIA | H31: 48
D32: 28 | F32: 3 | G32: LEGA SALVINI | H32: 28
D33: 31 | F33: 4 | G33: NOI CON L'ITALIA | H33: 31
B34: TOTALE VOTI VALIDI (A1=A2+A3) | D34: =SUM(D5,D7,D9,D11,D13,D15,D16,D17,D18,D20,D22,D24,D26,D28,D30,D31,D32,D33) -> 555 | E34: =SUM(E5,E7,E9,E11,E13,E15,E16,E17,E18,E20,E22,E24,E26,E28,E30,E31,E32,E33) -> 42 | H34: =SUM(H5:H33) -> 513
D35: A1 | E35: A2 | H35: A3
G37: SCHEDE BIANCHE | H37: 6
G38: SCHEDE NULLE | H38: 7
G39: SCHEDE CONTESTATE | H39: ='SEZ. 2'!E13 -> 0
G40: VOTANTI IN TOTALE | H40: =SUM(D34,H37:H39) -> 568 | I40: =IF(H40='SEZ. 2'!E7,"OK","NO") -> OK
H42: =IF(I40="NO",H40-'SEZ. 2'!E7,"") -> 

Sheet 3
B2: SCRUTINIO CAMERA - SEZIONE 3
B4: NUMERO CANDIDATO UNINOMINALE | C4: COGNOME E NOME | D4: TOTALE VOTI VALIDI CANDIDATO UNINOMINALE | E4: DI CUI VOTI ESPRESSI AL SOLO CANDIDATO UNINOMINALE | F4: N. LISTE | G4: LISTA COLLEGATA | H4: VOTI ESPRESSI PER LE LISTE
B5: 1 | C5: DURANTE Luca | D5: =SUM(E5,H5) -> 1 | F5: 1 | G5: 10 VOLTE MEGLIO | H5: 1
B7: 2 | C7: SIMMINI Maria detta Mariagrazia | D7: =SUM(E7,H7) -> 2 | F7: 1 | G7: POTERE AL POPOLO | H7: 2
B9: 3 | C9: DE LUCA Elena | D9: 1 | F9: 1 | G9: PARTITO VALORE UMANO | H9: 1
B11: 4 | C11: ALEMANNO Maria Soave | D11: 168 | F11: 1 | G11: MOVIMENTO 5 STELLE | H11: 168
B13: 5 | C13: DE CARLO Maria Luisa | D13: 2 | F13: 1 | G13: IL POPOLO DELLA FAMIGLIA | H13: 2
C14: BLASI Sergio | D14: =SUM(D15:D18) -> 69 | E14: =SUM(E15:E18) -> 4
B15: 6 | C15: BLASI Sergio | D15: 1 | F15: 1 | G15: CIVICA POPOLARE LORENZIN | H15: 1
D16: 2 | F16: 2 | G16: +EUROPA | H16: 2
D17: 66 | E17: 4 | F17: 3 | G17: PARTITO DEMOCRATICO | H17: 62
D18: 0 | F18: 4 | G18: ITALIA EUROPA INSIEME | H18: 0
B20: 7 | C20: CAMASSA Barbara | D20: 2 | F20: 1 | G20: PARTITO COMUNISTA | H20: 2
B22: 8 | C22: RISI Marcello | D22: 17 | F22: 1 | G22: LIBERI E UGUALI con Pietro GRASSO | H22: 17
B24: 9 | C24: CITTA Sonia | D24: 0 | F24: 1 | G24: PARTITO REPUBBLICANO ITALIANO - ALA | H24: 0
B26: 10 | C26: BALDASSARRE Angelo | D26: 2 | F26: 1 | G26: FORZA NUOVA ITALIA AGLI ITALIANI | H26: 2
B28: 11 | C28: GIURI Pierpaolo | D28: 2 | F28: 1 | G28: CASAPOUND ITALIA | H28: 2
C29: CAROPPO Andrea | D29: =SUM(D30:D33) -> 251 | E29: =SUM(E30:E33) -> 6
B30: 12 | C30: CAROPPO Andrea | D30: 155 | E30: 6 | F30: 1 | G30: FORZA ITALIA | H30: 149
D31: 32 | F31: 2 | G31: FRATELLI D'ITALIA | H31: 32
D32: 45 | F32: 3 | G32: LEGA SALVINI | H32: 45
D33: 19 | F33: 4 | G33: NOI CON L'ITALIA | H33: 19
B34: TOTALE VOTI VALIDI (A1=A2+A3) | D34: =SUM(D5,D7,D9,D11,D13,D15,D16,D17,D18,D20,D22,D24,D26,D28,D30,D31,D32,D33) -> 517 | E34: =SUM(E5,E7,E9,E11,E13,E15,E16,E17,E18,E20,E22,E24,E26,E28,E30,E31,E32,E33) -> 10 | H34: =SUM(H5:H33) -> 507
D35: A1 | E35: A2 | H35: A3
G37: SCHEDE BIANCHE | H37: 9
G38: SCHEDE NULLE | H38: 6
G39: SCHEDE CONTESTATE | H39: ='SEZ. 3'!E13 -> 0
G40: VOTANTI IN TOTALE | H40: =SUM(D34,H37:H39) -> 532 | I40: =IF(H40='SEZ. 3'!E7,"OK","NO") -> OK
H42: =IF(I40="NO",H40-'SEZ. 3'!E7,"") -> 

Sheet 4
B2: SCRUTINIO CAMERA - SEZIONE 4
B4: NUMERO CANDIDATO UNINOMINALE | C4: COGNOME E NOME | D4: TOTALE VOTI VALIDI CANDIDATO UNINOMINALE | E4: DI CUI VOTI ESPRESSI AL SOLO CANDIDATO UNINOMINALE | F4: N. LISTE | G4: LISTA COLLEGATA | H4: VOTI ESPRESSI PER LE LISTE
B5: 1 | C5: DURANTE Luca | D5: =SUM(E5,H5) -> 1 | F5: 1 | G5: 10 VOLTE MEGLIO | H5: 1
B7: 2 | C7: SIMMINI Maria detta Mariagrazia | D7: =SUM(E7,H7) -> 3 | E7: 1 | F7: 1 | G7: POTERE AL POPOLO | H7: 2
B9: 3 | C9: DE LUCA Elena | D9: 3 | F9: 1 | G9: PARTITO VALORE UMANO | H9: 3
B11: 4 | C11: ALEMANNO Maria Soave | D11: 257 | E11: 18 | F11: 1 | G11: MOVIMENTO 5 STELLE | H11: 239
B13: 5 | C13: DE CARLO Maria Luisa | D13: 9 | F13: 1 | G13: IL POPOLO DELLA FAMIGLIA | H13: 9
C14: BLASI Sergio | D14: =SUM(D15:D18) -> 103 | E14: =SUM(E15:E18) -> 5
B15: 6 | C15: BLASI Sergio | D15: 0 | F15: 1 | G15: CIVICA POPOLARE LORENZIN | H15: 0
D16: 6 | F16: 2 | G16: +EUROPA | H16: 6
D17: 95 | E17: 5 | F17: 3 | G17: PARTITO DEMOCRATICO | H17: 90
D18: 2 | F18: 4 | G18: ITALIA EUROPA INSIEME | H18: 2
B20: 7 | C20: CAMASSA Barbara | D20: 1 | F20: 1 | G20: PARTITO COMUNISTA | H20: 1
B22: 8 | C22: RISI Marcello | D22: 16 | F22: 1 | G22: LIBERI E UGUALI con Pietro GRASSO | H22: 16
B24: 9 | C24: CITTA Sonia | D24: 0 | F24: 1 | G24: PARTITO REPUBBLICANO ITALIANO - ALA | H24: 0
B26: 10 | C26: BALDASSARRE Angelo | D26: 1 | F26: 1 | G26: FORZA NUOVA ITALIA AGLI ITALIANI | H26: 1
B28: 11 | C28: GIURI Pierpaolo | D28: 3 | F28: 1 | G28: CASAPOUND ITALIA | H28: 3
C29: CAROPPO Andrea | D29: =SUM(D30:D33) -> 318 | E29: =SUM(E30:E33) -> 10
B30: 12 | C30: CAROPPO Andrea | D30: 196 | E30: 10 | F30: 1 | G30: FORZA ITALIA | H30: 186
D31: 45 | F31: 2 | G31: FRATELLI D'ITALIA | H31: 45
D32: 50 | F32: 3 | G32: LEGA SALVINI | H32: 50
D33: 27 | F33: 4 | G33: NOI CON L'ITALIA | H33: 27
B34: TOTALE VOTI VALIDI (A1=A2+A3) | D34: =SUM(D5,D7,D9,D11,D13,D15,D16,D17,D18,D20,D22,D24,D26,D28,D30,D31,D32,D33) -> 715 | E34: =SUM(E5,E7,E9,E11,E13,E15,E16,E17,E18,E20,E22,E24,E26,E28,E30,E31,E32,E33) -> 34 | H34: =SUM(H5:H33) -> 681
D35: A1 | E35: A2 | H35: A3
G37: SCHEDE BIANCHE | H37: 15
G38: SCHEDE NULLE | H38: 10
G39: SCHEDE CONTESTATE | H39: ='SEZ. 4'!E13 -> 0
G40: VOTANTI IN TOTALE | H40: =SUM(D34,H37:H39) -> 740 | I40: =IF(H40='SEZ. 4'!E7,"OK","NO") -> OK
H42: =IF(I40="NO",H40-'SEZ. 4'!E7,"") -> 

Sheet 5
B2: SCRUTINIO CAMERA - SEZIONE 5
B4: NUMERO CANDIDATO UNINOMINALE | C4: COGNOME E NOME | D4: TOTALE VOTI VALIDI CANDIDATO UNINOMINALE | E4: DI CUI VOTI ESPRESSI AL SOLO CANDIDATO UNINOMINALE | F4: N. LISTE | G4: LISTA COLLEGATA | H4: VOTI ESPRESSI PER LE LISTE
B5: 1 | C5: DURANTE Luca | D5: =SUM(E5,H5) -> 0 | E5: 0 | F5: 1 | G5: 10 VOLTE MEGLIO | H5: 0
B7: 2 | C7: SIMMINI Maria detta Mariagrazia | D7: =SUM(E7,H7) -> 4 | E7: 0 | F7: 1 | G7: POTERE AL POPOLO | H7: 4
B9: 3 | C9: DE LUCA Elena | D9: 0 | E9: 0 | F9: 1 | G9: PARTITO VALORE UMANO | H9: 0
B11: 4 | C11: ALEMANNO Maria Soave | D11: 182 | E11: 7 | F11: 1 | G11: MOVIMENTO 5 STELLE | H11: 175
B13: 5 | C13: DE CARLO Maria Luisa | D13: 1 | F13: 1 | G13: IL POPOLO DELLA FAMIGLIA | H13: 1
C14: BLASI Sergio | D14: =SUM(D15:D18) -> 93 | E14: =SUM(E15:E18) -> 8
B15: 6 | C15: BLASI Sergio | D15: 1 | F15: 1 | G15: CIVICA POPOLARE LORENZIN | H15: 1
D16: 13 | E16: 8 | F16: 2 | G16: +EUROPA | H16: 5
D17: 79 | F17: 3 | G17: PARTITO DEMOCRATICO | H17: 79
D18: 0 | F18: 4 | G18: ITALIA EUROPA INSIEME | H18: 0
B20: 7 | C20: CAMASSA Barbara | D20: 3 | E20: 0 | F20: 1 | G20: PARTITO COMUNISTA | H20: 3
B22: 8 | C22: RISI Marcello | D22: 14 | E22: 2 | F22: 1 | G22: LIBERI E UGUALI con Pietro GRASSO | H22: 12
B24: 9 | C24: CITTA Sonia | D24: 0 | E24: 0 | F24: 1 | G24: PARTITO REPUBBLICANO ITALIANO - ALA | H24: 0
B26: 10 | C26: BALDASSARRE Angelo | D26: 3 | E26: 0 | F26: 1 | G26: FORZA NUOVA ITALIA AGLI ITALIANI | H26: 3
B28: 11 | C28: GIURI Pierpaolo | D28: 2 | E28: 0 | F28: 1 | G28: CASAPOUND ITALIA | H28: 2
C29: CAROPPO Andrea | D29: =SUM(D30:D33) -> 271 | E29: =SUM(E30:E33) -> 6
B30: 12 | C30: CAROPPO Andrea | D30: 141 | E30: 6 | F30: 1 | G30: FORZA ITALIA | H30: 135
D31: 32 | F31: 2 | G31: FRATELLI D'ITALIA | H31: 32
D32: 52 | F32: 3 | G32: LEGA SALVINI | H32: 52
D33: 46 | F33: 4 | G33: NOI CON L'ITALIA | H33: 46
B34: TOTALE VOTI VALIDI (A1=A2+A3) | D34: =SUM(D5,D7,D9,D11,D13,D15,D16,D17,D18,D20,D22,D24,D26,D28,D30,D31,D32,D33) -> 573 | E34: =SUM(E5,E7,E9,E11,E13,E15,E16,E17,E18,E20,E22,E24,E26,E28,E30,E31,E32,E33) -> 23 | H34: =SUM(H5:H33) -> 550
D35: A1 | E35: A2 | H35: A3
G37: SCHEDE BIANCHE | H37: 7
G38: SCHEDE NULLE | H38: 13
G39: SCHEDE CONTESTATE | H39: ='SEZ. 5'!E13 -> 0
G40: VOTANTI IN TOTALE | H40: =SUM(D34,H37:H39) -> 593 | I40: =IF(H40='SEZ. 5'!E7,"OK","NO") -> OK
H42: =IF(I40="NO",H40-'SEZ. 5'!E7,"") -> 

Sheet 6
B2: SCRUTINIO CAMERA - SEZIONE 6
B4: NUMERO CANDIDATO UNINOMINALE | C4: COGNOME E NOME | D4: TOTALE VOTI VALIDI CANDIDATO UNINOMINALE | E4: DI CUI VOTI ESPRESSI AL SOLO CANDIDATO UNINOMINALE | F4: N. LISTE | G4: LISTA COLLEGATA | H4: VOTI ESPRESSI PER LE LISTE
B5: 1 | C5: DURANTE Luca | D5: =SUM(E5,H5) -> 2 | F5: 1 | G5: 10 VOLTE MEGLIO | H5: 2
B7: 2 | C7: SIMMINI Maria detta Mariagrazia | D7: =SUM(E7,H7) -> 5 | F7: 1 | G7: POTERE AL POPOLO | H7: 5
B9: 3 | C9: DE LUCA Elena | D9: 0 | F9: 1 | G9: PARTITO VALORE UMANO | H9: 0
B11: 4 | C11: ALEMANNO Maria Soave | D11: 207 | E11: 20 | F11: 1 | G11: MOVIMENTO 5 STELLE | H11: 187
B13: 5 | C13: DE CARLO Maria Luisa | D13: 9 | F13: 1 | G13: IL POPOLO DELLA FAMIGLIA | H13: 9
C14: BLASI Sergio | D14: =SUM(D15:D18) -> 76 | E14: =SUM(E15:E18) -> 1
B15: 6 | C15: BLASI Sergio | D15: 0 | F15: 1 | G15: CIVICA POPOLARE LORENZIN | H15: 0
D16: 6 | F16: 2 | G16: +EUROPA | H16: 6
D17: 68 | E17: 1 | F17: 3 | G17: PARTITO DEMOCRATICO | H17: 67
D18: 2 | F18: 4 | G18: ITALIA EUROPA INSIEME | H18: 2
B20: 7 | C20: CAMASSA Barbara | D20: 0 | F20: 1 | G20: PARTITO COMUNISTA | H20: 0
B22: 8 | C22: RISI Marcello | D22: 18 | E22: 2 | F22: 1 | G22: LIBERI E UGUALI con Pietro GRASSO | H22: 16
B24: 9 | C24: CITTA Sonia | D24: 0 | F24: 1 | G24: PARTITO REPUBBLICANO ITALIANO - ALA | H24: 0
B26: 10 | C26: BALDASSARRE Angelo | D26: 3 | F26: 1 | G26: FORZA NUOVA ITALIA AGLI ITALIANI | H26: 3
B28: 11 | C28: GIURI Pierpaolo | D28: 3 | F28: 1 | G28: CASAPOUND ITALIA | H28: 3
C29: CAROPPO Andrea | D29: =SUM(D30:D33) -> 218 | E29: =SUM(E30:E33) -> 8
B30: 12 | C30: CAROPPO Andrea | D30: 117 | E30: 8 | F30: 1 | G30: FORZA ITALIA | H30: 109
D31: 27 | F31: 2 | G31: FRATELLI D'ITALIA | H31: 27
D32: 33 | F32: 3 | G32: LEGA SALVINI | H32: 33
D33: 41 | F33: 4 | G33: NOI CON L'ITALIA | H33: 41
B34: TOTALE VOTI VALIDI (A1=A2+A3) | D34: =SUM(D5,D7,D9,D11,D13,D15,D16,D17,D18,D20,D22,D24,D26,D28,D30,D31,D32,D33) -> 541 | E34: =SUM(E5,E7,E9,E11,E13,E15,E16,E17,E18,E20,E22,E24,E26,E28,E30,E31,E32,E33) -> 31 | H34: =SUM(H5:H33) -> 510
D35: A1 | E35: A2 | H35: A3
G37: SCHEDE BIANCHE | H37: 12
G38: SCHEDE NULLE | H38: 28
G39: SCHEDE CONTESTATE | H39: ='SEZ. 6'!E13 -> 0
G40: VOTANTI IN TOTALE | H40: =SUM(D34,H37:H39) -> 581 | I40: =IF(H40='SEZ. 6'!E7,"OK","NO") -> OK
H42: =IF(I40="NO",H40-'SEZ. 6'!E7,"") -> 

Sheet Candidati
B3: CANDIDATO | D3: VOTI
B4: 1 | C4: =Scrutinio!O7 -> DURANTE | D4: =Scrutinio!O17 -> 6
B5: 2 | C5: =Scrutinio!P7 -> SIMMINI | D5: =Scrutinio!P17 -> 21
B6: 3 | C6: =Scrutinio!Q7 -> DE LUCA | D6: =Scrutinio!Q17 -> 5
B7: 4 | C7: =Scrutinio!R7 -> ALEMANNO | D7: =Scrutinio!R17 -> 1167
B8: 5 | C8: =Scrutinio!S7 -> DE CARLO | D8: =Scrutinio!S17 -> 30
B9: 6 | C9: =Scrutinio!T7 -> BLASI | D9: =Scrutinio!T17 -> 528
B10: 7 | C10: =Scrutinio!U7 -> CAMASSA | D10: =Scrutinio!U17 -> 9
B11: 8 | C11: =Scrutinio!V7 -> RISI | D11: =Scrutinio!V17 -> 93
B12: 9 | C12: =Scrutinio!W7 -> CITTA | D12: =Scrutinio!W17 -> 1
B13: 10 | C13: =Scrutinio!X7 -> BALDASSARRE | D13: =Scrutinio!X17 -> 21
B14: 11 | C14: =Scrutinio!Y7 -> GIURI | D14: =Scrutinio!Y17 -> 13
B15: 12 | C15: =Scrutinio!Z7 -> CAROPPO | D15: =Scrutinio!Z17 -> 1608
